bitfinex/quotes_BTCUSD_20230103
["timestamp","ask_amount","ask_price","bid_price","bid_amount"]
[1672755607805,0.08506164,16769.0,16768.0,0.6372762]
[1672755609280,0.08506164,16769.0,16768.0,0.2992642]
[1672755609548,0.08506164,16769.0,16768.0,2e-07]
[1672755609794,0.08506164,16769.0,16767.0,1.29620514]
[1672755610044,0.08506164,16769.0,16768.0,0.74199802]
[1672755610291,0.07909789,16769.0,16767.0,0.86918673]
[1672755610537,0.07909789,16769.0,16767.0,0.86948074]
[1672755610810,0.0119282,16768.0,16767.0,0.86948074]
[1672755611299,0.0059641,16768.0,16767.0,0.86948074]
[1672755611831,0.0059641,16768.0,16767.0,0.87548074]
[1672755612079,0.0059641,16768.0,16767.0,0.86948074]
[1672755613094,0.0909641,16768.0,16767.0,0.87548074]
[1672755613623,0.61106613,16768.0,16766.0,1.1]
[1672755614341,0.00596446,16767.0,16766.0,1.1]
[1672755614843,0.01192892,16767.0,16766.0,1.1]
[1672755615085,0.00596446,16767.0,16766.0,1.105]
[1672755615345,0.01192892,16767.0,16766.0,1.105]
[1672755615871,0.02385784,16767.0,16766.0,1.105]
[1672755616117,0.01192892,16767.0,16766.0,1.105]
[1672755616395,0.02385784,16767.0,16766.0,1.1]
[1672755616616,0.10192892,16767.0,16766.0,1.106]
[1672755616870,0.01789338,16767.0,16766.0,1.1]
[1672755617142,0.60712516,16767.0,16764.0,1.30683199]
[1672755617411,0.00596517,16765.0,16764.0,1.30683199]
[1672755617923,0.57503827,16765.0,16764.0,0.6]
[1672755618436,0.58696861,16765.0,16764.0,0.6]
[1672755618677,0.01193034,16765.0,16764.0,0.6]
[1672755618942,0.02386068,16765.0,16764.0,0.6]
[1672755619225,0.01193034,16765.0,16764.0,1.0216484]
[1672755619451,0.10593034,16765.0,16764.0,1.0266484]
[1672755619977,0.11189551,16765.0,16764.0,1.0266484]
[1672755620243,0.10593034,16765.0,16764.0,1.0266484]
[1672755620554,0.11786068,16765.0,16764.0,1.0266484]
[1672755620724,0.10593034,16765.0,16764.0,1.0266484]
[1672755620980,0.11786068,16765.0,16764.0,1.0266484]
[1672755621231,0.10593034,16765.0,16764.0,1.02676748]
[1672755621487,0.11786068,16765.0,16764.0,1.02676748]
[1672755621763,0.10593034,16765.0,16764.0,1.02676748]
[1672755621979,0.11786068,16765.0,16764.0,1.02676748]
[1672755622223,0.10593034,16765.0,16764.0,1.0266484]
[1672755622474,0.11189551,16765.0,16764.0,1.0266484]
[1672755622723,0.10593034,16765.0,16764.0,1.0266484]
[1672755623043,0.11189551,16765.0,16764.0,1.0266484]
[1672755623269,0.10593034,16765.0,16764.0,1.0266484]
[1672755624036,0.11189551,16765.0,16764.0,1.0266484]
[1672755624287,0.10593034,16765.0,16764.0,1.56569704]
[1672755624532,0.11786068,16765.0,16764.0,1.56569704]
[1672755624782,0.10593034,16765.0,16764.0,1.56569704]
[1672755625568,0.11786068,16765.0,16764.0,1.56569704]
[1672755625833,0.10593034,16765.0,16764.0,1.56569704]
[1672755626103,0.11786068,16765.0,16764.0,1.56569704]
[1672755626349,0.10593034,16765.0,16764.0,1.56569704]
[1672755626609,0.11786068,16765.0,16764.0,1.56569704]
[1672755626944,0.10593034,16765.0,16764.0,1.56569704]
[1672755627592,0.11786068,16765.0,16764.0,1.56569704]
[1672755627845,0.10593034,16765.0,16764.0,1.56569704]
[1672755628608,0.11189551,16765.0,16764.0,1.56569704]
[1672755628861,0.10593034,16765.0,16764.0,1.56569704]
[1672755629568,0.11786068,16765.0,16764.0,1.56569704]
[1672755629832,0.10593034,16765.0,16764.0,1.56569704]
[1672755630054,0.11189551,16765.0,16764.0,1.56569704]
[1672755630360,0.10593034,16765.0,16764.0,1.56569704]
[1672755630602,0.11189551,16765.0,16764.0,1.56569704]
[1672755630854,0.10593034,16765.0,16764.0,1.56569704]
[1672755631103,0.11189551,16765.0,16764.0,1.56569704]
[1672755631364,0.09996517,16765.0,16764.0,1.56569704]
[1672755631613,0.10593034,16765.0,16764.0,1.56569704]
[1672755632132,0.11189551,16765.0,16764.0,1.56569704]
[1672755632381,0.09996517,16765.0,16764.0,1.56569704]
[1672755632625,0.10593034,16765.0,16764.0,1.56569704]
[1672755633089,0.11189551,16765.0,16764.0,1.56569704]
[1672755633337,0.10593034,16765.0,16764.0,1.56569704]
[1672755634362,0.09996517,16765.0,16764.0,1.56569704]
[1672755637785,0.10593034,16765.0,16764.0,1.74379704]
[1672755638016,0.09996517,16765.0,16764.0,1.74379704]
[1672755638289,0.10593034,16765.0,16764.0,1.74379704]
[1672755638532,0.09996517,16765.0,16764.0,1.74379704]
[1672755638750,0.10593034,16765.0,16764.0,1.74379704]
[1672755638994,0.09996517,16765.0,16764.0,1.74379704]
[1672755639268,0.10593034,16765.0,16764.0,1.74379704]
[1672755639516,0.09996517,16765.0,16764.0,1.74379704]
[1672755639780,0.10593034,16765.0,16764.0,1.74379704]
[1672755640048,0.09996517,16765.0,16764.0,1.74379704]
[1672755640544,0.09996517,16765.0,16764.0,1.74372951]
[1672755643750,0.09996517,16765.0,16764.0,1.74272951]
[1672755661501,0.10996169,16765.0,16764.0,1.74272951]
[1672755661759,0.10996169,16765.0,16764.0,1.32108111]
[1672755662277,0.10996169,16765.0,16764.0,2.06365369]
[1672755662561,0.09996517,16765.0,16764.0,2.06365369]
[1672755663036,0.09996517,16765.0,16764.0,2.06358819]
[1672755669778,0.09996517,16765.0,16764.0,2.24178819]
[1672755677903,0.68095349,16765.0,16762.0,0.6078054]
[1672755678156,0.62041449,16764.0,16762.0,0.64008332]
[1672755678422,0.62041449,16764.0,16762.0,0.36008332]
[1672755678667,0.00596517,16763.0,16762.0,0.36008332]
[1672755678922,0.00596517,16763.0,16761.0,1.16257606]
[1672755679164,0.00596517,16763.0,16761.0,0.98165192]
[1672755679165,0.06860314,16763.0,16761.0,0.98165192]
[1672755679407,0.00596517,16763.0,16761.0,1.71589014]
[1672755679666,0.00596517,16762.0,16761.0,1.71589014]
[1672755679918,0.00596517,16762.0,16761.0,0.98165192]
[1672755680653,0.00596517,16762.0,16761.0,1.71589014]
[1672755680977,0.5389842,16762.0,16761.0,0.98165192]
[1672755681226,0.6739842,16762.0,16761.0,0.98165192]
[1672755681792,0.14096517,16762.0,16761.0,1.71589014]
[1672755682308,0.14096517,16762.0,16761.0,1.71716968]
[1672755682870,0.14096517,16762.0,16761.0,1.71589014]
[1672755683879,0.14096517,16762.0,16761.0,0.98165192]
[1672755684171,0.14096517,16762.0,16761.0,1.71589014]
[1672755684384,0.14096517,16762.0,16761.0,1.71716968]
[1672755684913,0.69422841,16762.0,16761.0,0.42372843]
[1672755685402,0.69422841,16762.0,16761.0,0.42500797]
[1672755685666,0.69422841,16762.0,16761.0,0.42372843]
[1672755687644,0.69422841,16762.0,16761.0,0.10666443]
[1672755687911,0.55922841,16762.0,16761.0,0.10666443]
[1672755688864,0.69422841,16762.0,16761.0,0.10666443]
[1672755689127,0.55922841,16762.0,16761.0,0.10666443]
[1672755689391,0.69422841,16762.0,16761.0,0.10666443]
[1672755689944,0.69422841,16762.0,16761.0,0.84024583]
[1672755690707,0.69422841,16762.0,16761.0,0.10666443]
[1672755691201,0.76365125,16762.0,16761.0,0.84024583]
[1672755691929,0.14096517,16762.0,16761.0,0.84024583]
[1672755693019,0.14096517,16762.0,16761.0,1.55692065]
[1672755697064,0.14096517,16762.0,16761.0,1.64174534]
[1672755705917,0.14089031,16762.0,16761.0,1.64174534]
[1672755709778,0.14089031,16762.0,16761.0,1.81984534]
[1672755713570,0.14089031,16762.0,16761.0,1.82106409]
[1672755713819,0.14089031,16762.0,16761.0,1.81984534]
[1672755715634,0.14089031,16762.0,16761.0,1.82106409]
[1672755719048,0.14089031,16762.0,16761.0,1.81984534]
[1672755719294,0.14089031,16762.0,16761.0,1.82106409]
[1672755721361,0.14089031,16762.0,16761.0,1.81984534]
[1672755721872,0.14089031,16762.0,16761.0,1.82106409]
[1672755722624,0.14089031,16762.0,16761.0,1.81984534]
[1672755724156,0.14089031,16762.0,16761.0,1.82106409]
[1672755724666,0.14089031,16762.0,16761.0,1.81984534]
[1672755727732,0.14089031,16762.0,16761.0,1.81973249]
[1672755731288,0.14089031,16762.0,16761.0,1.81979337]
[1672755732079,0.14089031,16762.0,16761.0,1.81973249]
[1672755732296,0.14089031,16762.0,16761.0,1.81979337]
[1672755732798,0.14089031,16762.0,16761.0,1.81973249]
[1672755733556,0.14089031,16762.0,16761.0,1.81979337]
[1672755735982,0.14089031,16762.0,16761.0,1.81973249]
[1672755740675,0.14089031,16762.0,16761.0,1.81979337]
[1672755740952,0.14089031,16762.0,16761.0,1.81973249]
[1672755741688,0.14089031,16762.0,16761.0,1.81979337]
[1672755743915,0.14089031,16762.0,16761.0,1.81973249]
[1672755746355,0.14089031,16762.0,16761.0,1.81979337]
[1672755746864,0.14078973,16762.0,16761.0,1.81979337]
[1672755756519,0.14078973,16762.0,16761.0,1.81973249]
[1672755760189,0.14078973,16762.0,16761.0,1.81979337]
[1672755761211,0.14078973,16762.0,16761.0,1.81973249]
[1672755762446,0.14078973,16762.0,16761.0,1.81979337]
[1672755763184,2.52713773,16762.0,16761.0,1.81979337]
[1672755763427,2.52713773,16762.0,16761.0,1.81973249]
[1672755765120,2.52713773,16762.0,16761.0,1.81979337]
[1672755765623,2.52713773,16762.0,16761.0,1.81973249]
[1672755766153,2.52713773,16762.0,16761.0,1.81979337]
[1672755766649,0.21513056,16766.0,16762.0,1.01256798]
[1672755766895,0.596487,16765.0,16763.0,0.85791584]
[1672755767144,0.596487,16765.0,16763.0,0.15256684]
[1672755767401,0.596487,16765.0,16762.0,1.48510059]
[1672755767661,0.00596552,16764.0,16763.0,0.61769202]
[1672755767922,1.79551352,16764.0,16763.0,0.61769202]
[1672755768170,0.023,16765.0,16764.0,0.4]
[1672755768424,1.78944,16765.0,16763.0,1.34569102]
[1672755768710,0.023,16764.0,16763.0,0.62769202]
[1672755768959,1.19892517,16765.0,16763.0,0.61769202]
[1672755769246,0.00596517,16764.0,16763.0,1.34599151]
[1672755769507,0.00596517,16764.0,16763.0,0.61769202]
[1672755770214,0.60248117,16764.0,16763.0,0.61769202]
[1672755770460,0.62548117,16764.0,16763.0,0.62769202]
[1672755770914,0.62554205,16764.0,16763.0,0.62769202]
[1672755782452,0.62548117,16764.0,16763.0,0.62769202]
[1672755782956,0.62548117,16764.0,16763.0,0.01]
[1672755783732,0.62548117,16764.0,16762.0,2.38093467]
[1672755784031,1.28254089,16764.0,16762.0,2.38093467]
[1672755784277,0.00596517,16763.0,16762.0,2.38093467]
[1672755784534,0.00596517,16763.0,16762.0,1.65263519]
[1672755784784,0.00596517,16763.0,16762.0,2.38119252]
[1672755785289,0.00596517,16763.0,16762.0,2.39019252]
[1672755785549,0.00596517,16763.0,16762.0,1.65263519]
[1672755785794,0.03796517,16763.0,16762.0,1.66163519]
[1672755786059,0.03796517,16763.0,16762.0,2.38999119]
[1672755788248,0.63451617,16763.0,16762.0,2.56819119]
[1672755790256,0.63451617,16763.0,16762.0,1.83983519]
[1672755790506,0.63451617,16763.0,16762.0,2.56818451]
[1672755792085,0.63451617,16763.0,16762.0,2.97784059]
[1672755793072,0.63451617,16763.0,16762.0,2.56818451]
[1672755795054,0.63457705,16763.0,16762.0,2.56818451]
[1672755795306,0.63451617,16763.0,16762.0,2.56818451]
[1672755799755,0.63457705,16763.0,16762.0,2.56818451]
[1672755800765,0.63451617,16763.0,16762.0,2.56818451]
[1672755804781,0.63451617,16763.0,16762.0,2.97784059]
[1672755805291,0.63451617,16763.0,16762.0,2.56818451]
[1672755805798,0.63451617,16763.0,16762.0,2.56810833]
[1672755806062,0.63451617,16763.0,16762.0,2.37054011]
[1672755806317,0.68304753,16770.0,16763.0,0.4]
[1672755806570,1.73774689,16771.0,16766.0,0.1765]
[1672755806820,0.30814796,16769.0,16767.0,1.03239906]
[1672755807338,0.0059641,16768.0,16767.0,1.03239906]
[1672755807584,0.0059641,16768.0,16766.0,0.77636697]
[1672755807830,0.97015796,16772.0,16766.0,0.77636697]
[1672755808090,0.06237392,16768.0,16767.0,1.02433346]
[1672755808341,1.78918588,16768.0,16767.0,0.009]
[1672755808580,1.85999794,16768.0,16767.0,0.009]
[1672755808828,1.86596204,16768.0,16767.0,0.009]
[1672755809089,2.46233904,16768.0,16766.0,1.49372848]
[1672755809346,2.46333904,16768.0,16767.0,0.009]
[1672755809851,2.46333904,16768.0,16766.0,1.49372848]
[1672755809852,2.46233904,16768.0,16766.0,1.49372848]
[1672755810348,0.0059641,16767.0,16766.0,1.49372848]
[1672755810599,1.1987821,16767.0,16766.0,1.50172848]
[1672755811988,1.1997821,16767.0,16766.0,1.50172848]
[1672755812238,1.1987821,16767.0,16766.0,1.49372848]
[1672755812495,1.1987821,16767.0,16766.0,1.72862867]
[1672755812795,1.1987821,16767.0,16766.0,2.64116278]
[1672755812796,1.1997821,16767.0,16766.0,2.64116278]
[1672755813297,1.1987821,16767.0,16766.0,2.63316278]
[1672755813560,1.1997821,16767.0,16766.0,2.63816278]
[1672755813813,1.1997821,16767.0,16766.0,3.32196352]
[1672755814333,1.1997821,16767.0,16766.0,2.70754752]
[1672755814879,1.1997821,16767.0,16766.0,2.70254752]
[1672755814880,1.1987821,16767.0,16766.0,2.70254752]
[1672755815131,1.1997821,16767.0,16766.0,2.70254752]
[1672755815379,1.1987821,16767.0,16766.0,2.70254752]
[1672755815640,1.1997821,16767.0,16766.0,2.70254752]
[1672755816379,1.7961911,16767.0,16766.0,2.70254752]
[1672755817172,1.7961911,16767.0,16766.0,2.70261133]
[1672755818842,1.7951911,16767.0,16766.0,2.70261133]
[1672755819098,1.7951911,16767.0,16766.0,1.96233789]
[1672755819350,1.7951911,16767.0,16766.0,2.73761133]
[1672755819625,1.7951911,16767.0,16766.0,1.7354377]
[1672755819873,1.7951911,16767.0,16766.0,1.5589377]
[1672755821139,1.7951911,16767.0,16766.0,1.5239377]
[1672755821371,1.7961911,16767.0,16766.0,1.5239377]
[1672755825120,1.7961911,16767.0,16766.0,2.29921114]
[1672755826287,1.7961911,16767.0,16766.0,1.5239377]
[1672755826573,1.7961911,16767.0,16766.0,2.29921114]
[1672755827379,1.7961911,16767.0,16766.0,2.52913225]
[1672755828354,1.7961911,16767.0,16766.0,2.29921114]
[1672755830107,1.7961911,16767.0,16766.0,1.5239377]
[1672755830353,1.7961911,16767.0,16766.0,1.52387193]
[1672755835085,1.7961911,16767.0,16766.0,1.5938518]
[1672755838078,1.7911911,16767.0,16766.0,1.5938518]
[1672755838585,1.7911911,16767.0,16766.0,1.59391561]
[1672755839382,1.79110927,16767.0,16766.0,1.59391561]
[1672755839630,1.79110927,16767.0,16766.0,1.83083452]
[1672755840364,1.79110927,16767.0,16766.0,2.60610796]
[1672755842609,1.79110927,16767.0,16766.0,2.36918905]
[1672755843916,1.79110927,16767.0,16766.0,2.36868905]
[1672755844200,1.79110927,16767.0,16766.0,2.29864537]
[1672755844667,1.79110927,16767.0,16766.0,1.52337193]
[1672755846186,1.79110927,16767.0,16766.0,1.59646098]
[1672755846394,1.79110927,16767.0,16766.0,2.37173442]
[1672755846684,1.79110927,16767.0,16766.0,2.60890786]
[1672755847686,1.79110927,16767.0,16766.0,3.22332386]
[1672755848675,1.79110927,16767.0,16766.0,2.60890786]
[1672755852632,1.79110927,16767.0,16766.0,1.83363442]
[1672755852876,1.79110927,16767.0,16766.0,1.83357061]
[1672755853636,1.79110927,16767.0,16766.0,2.60884405]
[1672755853897,1.79110927,16767.0,16766.0,3.22326005]
[1672755854707,1.79110927,16767.0,16766.0,2.60884405]
[1672755855201,1.79110927,16767.0,16766.0,3.22326005]
[1672755856512,1.79110927,16767.0,16766.0,3.22332386]
[1672755857996,1.49110927,16767.0,16766.0,3.22332386]
[1672755859500,1.49110927,16767.0,16766.0,3.22244968]
[1672755859744,1.49110927,16767.0,16766.0,2.60803368]
[1672755860980,1.49010927,16767.0,16766.0,2.60803368]
[1672755861227,1.49110927,16767.0,16766.0,2.60803368]
[1672755863033,1.49010927,16767.0,16766.0,3.22244968]
[1672755863292,1.49110927,16767.0,16766.0,3.22244968]
[1672755863820,1.49110927,16767.0,16766.0,2.98527624]
[1672755867264,1.49110927,16767.0,16766.0,2.37086024]
[1672755869834,1.49110927,16767.0,16766.0,2.54896024]
[1672755870129,1.49110927,16767.0,16766.0,3.16337624]
[1672755871378,1.49110927,16767.0,16766.0,2.54896024]
[1672755875411,1.49110927,16767.0,16766.0,3.16337624]
[1672755876211,1.49010927,16767.0,16766.0,3.16337624]
[1672755876729,1.49110927,16767.0,16766.0,3.16337624]
[1672755876959,1.49210927,16767.0,16766.0,3.16337624]
[1672755877449,1.49210927,16767.0,16766.0,2.54896024]
[1672755878473,1.49217015,16767.0,16766.0,2.37159643]
[1672755878749,1.49210927,16767.0,16766.0,2.37159643]
[1672755879010,1.49210927,16767.0,16766.0,2.37149459]
[1672755879784,1.49217015,16767.0,16766.0,1.80348951]
[1672755880077,1.49217015,16767.0,16766.0,0.42928905]
[1672755881033,1.49010927,16767.0,16766.0,0.42928905]
[1672755881300,1.49110927,16767.0,16766.0,1.20368831]
[1672755881557,1.49110927,16767.0,16766.0,0.25118905]
[1672755881836,1.55354313,16767.0,16766.0,0.25118905]
[1672755883138,1.55354313,16767.0,16766.0,5e-08]
[1672755883382,1.57527284,16767.0,16765.0,1.27439926]
[1672755883636,1.57527284,16767.0,16765.0,0.5]
[1672755884159,0.0059641,16766.0,16765.0,0.5]
[1672755884415,1.4374321,16766.0,16765.0,0.5]
[1672755884939,1.45066181,16766.0,16765.0,0.5]
[1672755885966,1.45066181,16766.0,16765.0,0.535]
[1672755886449,1.69159499,16766.0,16765.0,0.535]
[1672755886712,1.69159499,16766.0,16765.0,0.5]
[1672755886960,1.69259499,16766.0,16765.0,0.508]
[1672755887215,1.69259499,16766.0,16765.0,0.5]
[1672755888284,1.69359499,16766.0,16765.0,0.508]
[1672755888535,1.69359499,16766.0,16764.0,0.7779012]
[1672755889053,1.69359499,16766.0,16764.0,0.1781]
[1672755889296,0.0059641,16765.0,16764.0,0.1781]
[1672755889550,0.954312,16766.0,16765.0,0.77302775]
[1672755889797,0.962312,16766.0,16765.0,1.16096381]
[1672755890049,0.962312,16766.0,16765.0,0.38356475]
[1672755890294,0.982525,16766.0,16765.0,0.38356475]
[1672755891049,0.974525,16766.0,16765.0,0.38356475]
[1672755891271,0.982525,16766.0,16765.0,0.39356475]
[1672755891520,0.982525,16766.0,16765.0,0.22850175]
[1672755892273,0.98258588,16766.0,16765.0,0.22850175]
[1672755892546,0.982525,16766.0,16765.0,0.01]
[1672755892786,1.04490547,16766.0,16765.0,0.01]
[1672755893032,1.04490547,16766.0,16764.0,1.2927384]
[1672755893541,6.088e-05,16765.0,16764.0,1.2927384]
[1672755893766,1.25857281,16765.0,16764.0,1.2927384]
[1672755894004,1.27208495,16765.0,16764.0,1.2927384]
[1672755894255,1.27208495,16765.0,16764.0,1.3027384]
[1672755894519,1.24226358,16765.0,16764.0,1.2927384]
[1672755894774,1.26026358,16765.0,16764.0,1.3017384]
[1672755898885,1.26026358,16765.0,16764.0,0.009]
[1672755899402,1.26032446,16765.0,16764.0,0.52413081]
[1672755899902,1.26032446,16765.0,16764.0,0.70223081]
[1672755900651,1.26032446,16765.0,16764.0,0.039782]
[1672755900897,1.54363464,16765.0,16764.0,0.010365]
[1672755901147,1.54363464,16765.0,16764.0,0.004491]
[1672755901391,1.54363464,16765.0,16764.0,0.003318]
[1672755901629,0.76752724,16767.0,16765.0,0.5]
[1672755901630,0.76487524,16767.0,16765.0,0.5]
[1672755901883,0.32983798,16769.0,16765.0,0.24006002]
[1672755902126,0.01351214,16766.0,16765.0,0.44244558]
[1672755902374,0.01947695,16766.0,16764.0,0.76846474]
[1672755902640,0.43698795,16766.0,16765.0,0.69420783]
[1672755902910,1.252533,16766.0,16765.0,0.69420783]
[1672755903168,0.54108684,16771.0,16766.0,0.74006002]
[1672755903420,1.35861037,16771.0,16767.0,0.99206012]
[1672755903689,0.1781,16769.0,16768.0,0.24006002]
[1672755903951,0.0059641,16768.0,16767.0,0.24006002]
[1672755904184,0.0059641,16768.0,16766.0,1.2520001]
[1672755904463,0.0179728,16768.0,16766.0,1.76174338]
[1672755904962,0.0059641,16767.0,16766.0,1.76174338]
[1672755905210,0.0144641,16767.0,16766.0,1.76174338]
[1672755905460,0.0264728,16767.0,16766.0,1.00974328]
[1672755906227,0.0264728,16767.0,16766.0,1.67816512]
[1672755906667,0.0354728,16767.0,16766.0,1.68816512]
[1672755907408,0.0354728,16767.0,16766.0,1.17836083]
[1672755907666,0.0269728,16767.0,16766.0,2.92454418]
[1672755908409,0.0269728,16767.0,16766.0,2.85598455]
[1672755908912,0.0269728,16767.0,16766.0,2.84604556]
[1672755908913,0.0179728,16767.0,16766.0,2.84604556]
[1672755909129,0.0269728,16767.0,16766.0,2.61196803]
[1672755909897,0.0269728,16767.0,16766.0,2.61202904]
[1672755911154,1.1005078,16767.0,16766.0,2.61202904]
[1672755911400,1.1005078,16767.0,16766.0,1.86002894]
[1672755911658,1.1005078,16767.0,16766.0,1.85996793]
[1672755912400,1.1005078,16767.0,16766.0,1.86002894]
[1672755917856,1.1005078,16767.0,16766.0,2.61202904]
[1672755920927,1.1005078,16767.0,16766.0,1.85996793]
[1672755922454,1.0884991,16767.0,16766.0,4.30894195]
[1672755922691,1.0884991,16767.0,16766.0,4.87705675]
[1672755922959,1.0884991,16767.0,16766.0,3.80625675]
[1672755923216,1.0794991,16767.0,16766.0,3.86481638]
[1672755923459,1.0874991,16767.0,16766.0,3.87381638]
[1672755923724,1.0794991,16767.0,16766.0,3.86261638]
[1672755923989,1.0794991,16767.0,16766.0,4.67061638]
[1672755924481,1.0794991,16767.0,16766.0,4.40954123]
[1672755926973,1.0794991,16767.0,16766.0,3.04312513]
[1672755927218,1.0794991,16767.0,16766.0,3.61872523]
[1672755927968,1.0794991,16767.0,16766.0,2.91863103]
[1672755930033,1.09396732,16767.0,16766.0,2.16650928]
[1672755931981,1.09396732,16767.0,16766.0,2.91850938]
[1672755932494,1.09396732,16767.0,16766.0,2.16650928]
[1672755933760,1.09396732,16767.0,16766.0,2.16663093]
[1672755934011,1.09396732,16767.0,16766.0,2.16650928]
[1672755934772,1.09396732,16767.0,16766.0,2.16663093]
[1672755935025,1.09396732,16767.0,16766.0,2.16650928]
[1672755939116,1.09396732,16767.0,16766.0,3.21036032]
[1672755939613,1.09396732,16767.0,16766.0,2.91850938]
[1672755939861,1.09396732,16767.0,16766.0,1.98940928]
[1672755940111,1.09396732,16767.0,16766.0,2.74140938]
[1672755940378,1.09396732,16767.0,16766.0,1.98940928]
[1672755945438,1.63800055,16767.0,16765.0,0.5998012]
[1672755945699,1.63800055,16767.0,16764.0,1.97901668]
[1672755945700,0.43355868,16766.0,16764.0,1.97901668]
[1672755945967,1.19296,16765.0,16763.0,0.5765]
[1672755946207,1.43898412,16765.0,16763.0,0.4]
[1672755946474,1.45624353,16765.0,16763.0,0.4]
[1672755946714,0.0059641,16764.0,16763.0,0.4]
[1672755946975,0.02322351,16764.0,16762.0,1.18436115]
[1672755947264,0.91799751,16764.0,16763.0,0.6093253]
[1672755947495,0.9007381,16764.0,16763.0,0.3100693]
[1672755947779,0.91799751,16764.0,16763.0,0.3100693]
[1672755948038,1.02699751,16764.0,16763.0,0.3140693]
[1672755948585,1.02699751,16764.0,16763.0,0.0079463]
[1672755948847,0.91799751,16764.0,16762.0,0.67652382]
[1672755949115,1.02999751,16764.0,16763.0,0.003]
[1672755949362,1.02403341,16764.0,16762.0,1.28302081]
[1672755949621,0.00596588,16763.0,16762.0,1.28302081]
[1672755949890,0.90079088,16763.0,16762.0,1.46042081]
[1672755950141,0.91790079,16763.0,16762.0,1.46042081]
[1672755951224,0.91790079,16763.0,16762.0,1.46342081]
[1672755951474,0.91790079,16763.0,16762.0,1.46054249]
[1672755951733,0.91790079,16763.0,16762.0,1.46354249]
[1672755951734,1.03290079,16763.0,16762.0,1.46354249]
[1672755953708,1.03290079,16763.0,16762.0,1.46514249]
[1672755954195,1.03290079,16763.0,16762.0,1.46502081]
[1672755955441,1.01579088,16763.0,16762.0,1.46502081]
[1672755955939,1.03290079,16763.0,16762.0,1.46502081]
[1672755957213,1.03290079,16763.0,16762.0,2.18907852]
[1672755961089,1.03290079,16763.0,16762.0,2.80349452]
[1672755961597,1.03290079,16763.0,16762.0,2.18907852]
[1672755962102,1.03290079,16763.0,16762.0,2.56800054]
[1672755962347,1.01579088,16763.0,16762.0,2.56800054]
[1672755962607,1.01579088,16763.0,16762.0,3.47183712]
[1672755962881,1.01579088,16763.0,16762.0,2.89699753]
[1672755963130,0.1782,16770.0,16763.0,0.4]
[1672755963384,0.477102,16768.0,16764.0,1.16125592]
[1672755963681,0.715702,16767.0,16765.0,0.98305592]
[1672755964018,0.73364872,16767.0,16766.0,1.43925599]
[1672755964204,0.715702,16767.0,16766.0,1.5187504]
[1672755964483,4.53165693,16790.0,16767.0,0.24006002]
[1672755964775,0.01794672,16771.0,16768.0,0.73842142]
[1672755965003,0.0059641,16768.0,16766.0,0.1778]
[1672755965270,0.954252,16767.0,16766.0,0.1778]
[1672755965510,0.9602161,16767.0,16766.0,0.1778]
[1672755966286,0.97816282,16767.0,16766.0,0.1778]
[1672755966539,0.97816282,16767.0,16766.0,0.355]
[1672755966809,0.97816282,16767.0,16766.0,0.86959739]
[1672755967262,0.97916282,16767.0,16766.0,0.87759739]
[1672755967552,0.97816282,16767.0,16766.0,0.86959739]
[1672755967794,0.97816282,16767.0,16766.0,0.87359739]
[1672755967795,0.97916282,16767.0,16766.0,0.87359739]
[1672755968052,0.97816282,16767.0,16766.0,0.95655713]
[1672755968271,0.97916282,16767.0,16766.0,0.95655713]
[1672755969060,0.97916282,16767.0,16766.0,0.86959739]
[1672755970068,0.97916282,16767.0,16766.0,1.59985683]
[1672755970287,0.97916282,16767.0,16766.0,1.59985638]
[1672755971070,0.97916282,16767.0,16766.0,1.59985691]
[1672755973573,0.97916282,16767.0,16766.0,2.57810655]
[1672755973827,0.97916282,16767.0,16766.0,2.57780655]
[1672755974335,0.9612161,16767.0,16766.0,2.57780655]
[1672755974585,0.9602161,16767.0,16766.0,1.96339055]
[1672755974831,0.9612161,16767.0,16766.0,1.96339055]
[1672755975329,0.9602161,16767.0,16766.0,1.96324604]
[1672755976531,0.9612161,16767.0,16766.0,1.96324604]
[1672755977754,0.9612161,16767.0,16766.0,2.57766204]
[1672755978741,0.9612161,16767.0,16766.0,1.96324604]
[1672755979804,0.9612161,16767.0,16766.0,1.78514604]
[1672755980561,0.9612161,16767.0,16766.0,1.78526769]
[1672755983335,0.9562161,16767.0,16766.0,1.78526769]
[1672755984893,0.9562161,16767.0,16766.0,1.96379446]
[1672755985129,0.9562161,16767.0,16766.0,1.26356343]
[1672755985370,0.9562161,16767.0,16766.0,1.85017391]
[1672755985613,0.9562161,16767.0,16766.0,1.26356343]
[1672755986395,0.9552161,16767.0,16766.0,1.26356343]
[1672755986680,0.9562161,16767.0,16766.0,1.26356343]
[1672755988145,0.9562161,16767.0,16766.0,1.96356343]
[1672755988629,0.9562161,16767.0,16766.0,2.57797943]
[1672755989668,0.9562161,16767.0,16766.0,2.75537943]
[1672755990339,0.9562161,16767.0,16766.0,3.3902397]
[1672755990593,0.9552161,16767.0,16766.0,3.21171293]
[1672755990862,0.9552161,16767.0,16766.0,3.33471293]
[1672755991594,0.9552161,16767.0,16766.0,3.33426593]
[1672755992814,0.9552161,16767.0,16766.0,1.98961327]
[1672755993097,0.9552161,16767.0,16766.0,2.72549651]
[1672755993609,0.9552161,16767.0,16766.0,2.7832486]
[1672755993866,0.9552161,16767.0,16766.0,2.6976646]
[1672755994366,0.9552161,16767.0,16766.0,2.90967897]
[1672755994863,0.9552161,16767.0,16766.0,2.63991251]
[1672755995376,0.9552161,16767.0,16766.0,2.69763451]
[1672755995868,0.9552161,16767.0,16766.0,1.34733527]
[1672755996118,0.9552161,16767.0,16766.0,2.08321851]
[1672755996373,0.9552161,16767.0,16766.0,2.02549651]
[1672755996636,0.9552161,16767.0,16766.0,2.02561816]
[1672755997147,0.9552161,16767.0,16766.0,1.59331971]
[1672755997394,0.9552161,16767.0,16766.0,2.27221369]
[1672755997649,0.9552161,16767.0,16766.0,2.97221369]
[1672755997896,0.9552161,16767.0,16766.0,2.76965187]
[1672755998149,0.9552161,16767.0,16766.0,3.25798019]
[1672755999149,0.9552161,16767.0,16766.0,3.32245817]
[1672756000203,0.9552161,16767.0,16766.0,3.25798019]
[1672756001453,0.9552161,16767.0,16766.0,3.32245817]
[1672756001810,0.9552161,16767.0,16766.0,3.32406611]
[1672756002480,0.9552161,16767.0,16766.0,3.25958813]
[1672756003261,0.9552161,16767.0,16766.0,3.32406611]
[1672756003522,0.9552161,16767.0,16766.0,2.62406611]
[1672756004083,0.9552161,16767.0,16766.0,2.00965011]
[1672756004312,0.9552161,16767.0,16766.0,1.94517213]
[1672756004530,0.9552161,16767.0,16766.0,2.64517213]
[1672756004822,0.9552161,16767.0,16766.0,3.25958813]
[1672756005291,0.9552161,16767.0,16766.0,3.32809599]
[1672756007548,0.9552161,16767.0,16766.0,2.71367999]
[1672756008309,0.9552161,16767.0,16766.0,1.2776751]
[1672756008792,0.9552161,16767.0,16766.0,2.01355834]
[1672756009297,0.9552161,16767.0,16766.0,1.94505048]
[1672756009816,0.9552161,16767.0,16766.0,1.76819748]
[1672756011886,0.9552161,16767.0,16766.0,1.76831913]